[Event "TUR-ch U13-18 Open 2023"]
[Site "Antalya"]
[Date "2023.01.23"]
[Round "3"]
[White "Tarhan, Adar"]
[Black "Kayan, Yasar Efe"]
[Result "1-0"]
[ECO "B45"]
[WhiteElo "2321"]
[BlackElo "1720"]
[Annotator "TA"]
[PlyCount "53"]
[EventDate "2023.01.17"]
[EventType "swiss"]
[EventCountry "TUR"]
[SourceTitle "playchess.com"]
[Source "ChessBase"]
[SourceQuality "1"]
[TimeControl "5400+30"]

{[%evp 26,53,20,18,56,35,85,81,93,32,35,53,41,33,47,42,46,47,31,36,170,184,188,169,504,491,29984,814,29985,804]} 1. e4 {[%emt 0:05:00]} c5 {[%emt 0:01:00]} 2. Nf3 {[%emt 0:00:30]} e6 {[%emt 0:00:30]} 3. d4 {[%emt 0:00:30]} cxd4 {[%emt 0:00:00]} 4. Nxd4 {[%emt 0:00:00]} Nc6 {[%emt 0:00:00]} 5. Nc3 {[%emt 0:00:00]} Nf6 {[%emt 0:00:30]} 6. Ndb5 {[%emt 0:00:30]} Bb4 {[%emt 0:00:30]} 7. a3 {[%emt 0:00:00]} Bxc3+ {[%emt 0:00:00]} 8. Nxc3 {[%emt 0:00:00]} d5 {[%emt 0:00:00]} 9. exd5 {[%emt 0:00:30]} exd5 {[%emt 0:00:00]} 10. Bd3 {[%emt 0:00:30]} O-O {[%emt 0:00:00]} 11. O-O {[%emt 0:00:00]} d4 {[%emt 0:00:00]} 12. Ne2 {[%emt 0:04:00]} Bg4 {[%emt 0:00:00]} 13. f3 {[%emt 0:00:30]} Bh5 {[%emt 0:02:30]} 14. Bg5 {[%emt 0:03:30]} Qd6 {[%emt 0:02:30] B45: Sicilian Four Knights.} 15. Qd2 {[%emt 0:02:30] [#]} h6 $146 {[%emt 0:06:30]} (15... Bg6 $14) ({Predecessor:} 15... Rfe8 16. Nf4 Bg6 17. Nxg6 hxg6 18. Rfe1 Qc5 19. Bh4 Qb6 20. b4 Nd5 21. Bf2 a6 {1-0 Bodnaruk,A (2459)-Gunina,V (2529) EU-Cup (Women) 20th 2015 (4.1)}) 16. Bh4 {[%emt 0:09:30]} Rad8 {[%emt 0:33:30] White is better.} 17. Nf4 {[%emt 0:35:30]} (17. Bg3 $16 Qe7 18. Bf2) 17... g5 $14 {[%emt 0:05:30]} 18. Nxh5 {[%emt 0:02:30]} Nxh5 {[%emt 0:00:30] [#]} 19. Bxg5 {[%emt 0:10:30]} hxg5 {[%emt 0:00:30]} 20. Qxg5+ {[%emt 0:00:30]} Ng7 {[%emt 0:00:00]} 21. Qh4 {[%emt 0:01:30][%csl Gd3][%cal Rh4h7][%mdl 1024] White has compensation.} f5 {[%emt 0:00:00] Strongly threatening ...Ne5.} 22. Bc4+ {[%emt 0:00:00]} Ne6 {[%emt 0:00:30] Loses the game.} ({Better is} 22... Rf7 $1 $14) 23. Rae1 {[%emt 0:05:59]} Rde8 {[%emt 0:00:30]} 24. Qh6 $40 {[%emt 0:01:34][%mdl 128] White has strong attack.} Kf7 {[%emt 0:00:30]} (24... Ncd8) 25. g4 $18 {[%emt 0:00:30] [#] Hoping for Qh7+.} f4 {[%emt 0:00:30]} (25... Ne5 $18) 26. Qh7+ {[%emt 0:00:30]} Kf6 {[%emt 0:00:30]} 27. h4 {[%emt 0:02:49] Weighted Error Value: White=0.07 (flawless) /Black=1.28} ({Stronger than} 27. Qxb7 Nc7 28. Rxe8 Rxe8 $19) (27. g5+ $142 Kxg5 28. Kf2 (28. Qxb7 $2 {is the wrong capture.} Nc7 $19) 28... Kf6 29. Rg1 (29. Qxb7 $2 {perishes.} d3 $19) 29... Rg8 30. Qh6+ Kf7 31. Bxe6+ Qxe6 32. Rxe6) 1-0

[Event "TUR-ch U13-18 Open 2023"]
[Site "Antalya"]
[Date "2023.01.23"]
[Round "3"]
[White "Ince, Taylan Ruzgar"]
[Black "Yilmaz, Kerem Tuna"]
[Result "1/2-1/2"]
[ECO "E09"]
[WhiteElo "2267"]
[BlackElo "1706"]
[Annotator "TA"]
[PlyCount "90"]
[EventDate "2023.01.17"]
[EventType "swiss"]
[EventCountry "TUR"]
[SourceTitle "playchess.com"]
[Source "ChessBase"]
[SourceQuality "1"]
[TimeControl "5400+30"]

{[%evp 21,90,26,28,16,42,28,31,33,50,37,48,33,56,52,43,47,59,50,53,35,39,62,56,0,0,0,0,0,0,0,0,0,0,0,0,0,10,0,8,8,13,0,33,0,0,0,0,0,0,0,0,0,0,0,0,0,0,0,0,0,0,0,0,0,0,0,0,0,0,0,0]} 1. d4 {[%emt 0:01:00]} d5 {[%emt 0:01:00]} 2. c4 {[%emt 0:00:30]} e6 {[%emt 0:00:00]} 3. Nf3 {[%emt 0:00:30]} Nf6 {[%emt 0:00:00]} 4. g3 {[%emt 0:00:00]} Be7 {[%emt 0:02:30]} 5. Bg2 {[%emt 0:00:00]} O-O {[%emt 0:00:30]} 6. O-O {[%emt 0:01:30]} c6 {[%emt 0:03:30]} 7. Qc2 {[%emt 0:00:00]} Nbd7 {[%emt 0:02:30]} 8. Nbd2 {[%emt 0:01:00][%cal Bb1d2,Bd2e4,Be4c3][%mdl 32]} b6 {[%emt 0:03:30]} 9. e4 {[%emt 0:00:30]} dxe4 {[%emt 0:00:30]} 10. Nxe4 {[%emt 0:00:00]} Bb7 {[%emt 0:01:30]} 11. Rd1 {[%emt 0:02:00]} Qc8 {[%emt 0:01:30]} 12. Nc3 {[%emt 0:04:30] E09: Closed Catalan: Main Line: 7 Qc2 c6 8 Nbd2.} Rd8 {[%emt 0:06:30]} 13. Bf4 {[%emt 0:08:30]} Nf8 {[%emt 0:06:30]} 14. Ne5 {[%emt 0:02:30] White is slightly better.} Ng6 {[%emt 0:01:30]} 15. Nxg6 {[%emt 0:00:30]} hxg6 {[%emt 0:00:00]} 16. Qe2 {[%emt 0:01:30]} Bd6 {[%emt 0:04:00] [#]} 17. Bxd6 $146 {[%emt 0:01:30]} ({Predecessor:} 17. Bg5 Re8 18. Qf3 Be7 19. Rd2 Nh7 20. Bxe7 Rxe7 21. Ne4 Qc7 22. Rad1 f5 23. Nc3 {1-0 Mikhailov,I (1949)-Toporkova,S (1578) St Petersburg Autumn op 2010 (5)}) 17... Rxd6 {[%emt 0:00:00]} 18. Rd2 {[%emt 0:17:30]} Qd7 {[%emt 0:10:00]} 19. Rad1 {[%emt 0:03:30]} Rd8 {[%emt 0:00:30]} 20. Qe5 {[%emt 0:02:30]} c5 {[%emt 0:10:30]} 21. Nb5 {[%emt 0:00:30]} Bxg2 {[%emt 0:00:30]} 22. Qxd6 {[%emt 0:01:30]} (22. Nxd6 $14 Bf3 23. dxc5 Bxd1 24. Rxd1) 22... Qxd6 $11 {[%emt 0:01:30]} 23. Nxd6 {[%emt 0:00:30]} Bf3 {[%emt 0:00:00][%cal Of3d1]} 24. dxc5 $1 {[%emt 0:08:30][%cal Od6e4] [#] Black must now prevent Ne4!} Bxd1 {[%emt 0:00:00]} 25. Rxd1 {[%emt 0:00:30]} bxc5 {[%emt 0:00:30][%mdl 4096] Endgame ...Ne8 would be deadly. KRN-KRN} 26. Rd2 $1 {[%emt 0:00:00]} Kf8 {[%emt 0:14:30] aiming for ...Ke7.} 27. Ne4 $1 {[%emt 0:00:00][%mdl 64] [#] Discovered Attack} Rxd2 {[%emt 0:00:30]} 28. Nxd2 {[%emt 0:00:30] KN-KN} Ke7 {[%emt 0:00:30]} 29. Kf1 {[%emt 0:00:30]} Kd6 {[%emt 0:00:30]} 30. Ke2 {[%emt 0:00:30]} g5 {[%emt 0:00:30]} 31. Kd3 {[%emt 0:00:30]} Ke5 {[%emt 0:00:30]} 32. a3 {[%emt 0:00:30]} Ng4 {[%emt 0:00:30][%csl LRf2,LRh2] The position is equal.} 33. Nf3+ {[%emt 0:00:30]} Kf5 {[%emt 0:00:30]} 34. Ke2 {[%emt 0:00:30]} a5 {[%emt 0:00:30]} 35. b3 {[%emt 0:00:30]} Nf6 {[%emt 0:00:30]} 36. h3 {[%emt 0:00:30]} g4 {[%emt 0:00:30]} 37. hxg4+ {[%emt 0:00:30]} Nxg4 {[%emt 0:00:30]} 38. Ne1 {[%emt 0:00:30] Hoping for Nd3.} Ke5 {[%emt 0:00:30]} 39. f3 {[%emt 0:00:30][%cal Bf2f3,Bf3f4][%mdl 32]} Nh6 {[%emt 0:00:30]} 40. Kd3 {[%emt 0:00:30]} Nf5 {[%emt 0:00:30]} 41. f4+ {[%emt 0:00:30]} Kd6 {[%emt 0:00:30]} 42. g4 {[%emt 0:00:30]} Nh6 {[%emt 0:00:30]} 43. g5 {[%emt 0:00:30]} Nf5 {[%emt 0:00:30]} 44. Nf3 {[%emt 0:00:30]} f6 {[%emt 0:00:30]} 45. Nd2 {[%emt 0:23:30]} Ng3 {[%emt 0:25:55] Weighted Error Value: White=0.06 (flawless) /Black=0.05 (flawless)} 1/2-1/2

[Event "TUR-ch U13-18 Open 2023"]
[Site "Antalya"]
[Date "2023.01.23"]
[Round "3"]
[White "Yildirim, Ibrahim Halil"]
[Black "Kocer, Ahmet Doruk"]
[Result "1-0"]
[ECO "B45"]
[WhiteElo "2124"]
[BlackElo "1663"]
[Annotator "TA"]
[PlyCount "55"]
[EventDate "2023.01.17"]
[EventType "swiss"]
[EventCountry "TUR"]
[SourceTitle "playchess.com"]
[Source "ChessBase"]
[SourceQuality "1"]
[TimeControl "5400+30"]

{[%evp 17,55,26,38,45,41,26,34,31,38,37,32,0,0,0,26,0,0,0,0,0,10,0,19,-10,6,6,9,0,94,94,91,81,78,82,29991,29992,29992,29993,29997,29998]} 1. e4 {[%emt 0:01:00]} c5 {[%emt 0:01:00]} 2. Nf3 {[%emt 0:00:30]} e6 {[%emt 0:00:00]} 3. d4 {[%emt 0:00:30]} cxd4 {[%emt 0:00:00]} 4. Nxd4 {[%emt 0:00:30]} Nf6 {[%emt 0:00:30]} 5. Nc3 {[%emt 0:00:30]} Nc6 {[%emt 0:00:00]} 6. Nxc6 {[%emt 0:00:00]} bxc6 {[%emt 0:00:00]} 7. e5 {[%emt 0:00:00]} Nd5 {[%emt 0:00:30]} 8. Ne4 {[%emt 0:00:00]} Qa5+ {[%emt 0:00:00]} 9. c3 {[%emt 0:28:00]} f5 {[%emt 0:00:00] was the old line (9...Ba6).} 10. exf6 {[%emt 0:01:30] B45: Sicilian Four Knights.} Nxf6 {[%emt 0:00:30]} 11. Nd6+ {[%emt 0:01:30]} Bxd6 {[%emt 0:00:30]} 12. Qxd6 {[%emt 0:00:30] White is slightly better.} Ba6 {[%emt 0:02:30]} 13. Bxa6 {[%emt 0:20:30]} Qxa6 {[%emt 0:00:30] Black is weak on the dark squares} 14. Be3 {[%emt 0:05:30]} Kf7 {[%emt 0:16:30]} 15. Bd4 {[%emt 0:07:30] [#] Bxf6 would be deadly.} Rad8 $146 {[%emt 0:17:30][%cal Oe6e5]} ({Predecessor:} 15... Rhb8 16. Bxf6 Kxf6 17. Qd4+ Kg6 18. Qxd7 Qc4 19. Qd2 Rb5 20. f3 Rd8 21. Qxd8 Rxb2 {½-½ Panarin,M (2475)-Halkias,S (2533) Moscow Aeroflot op-B 2005 (2)}) 16. f3 {[%emt 0:05:30]} (16. Bc5 Rb8 17. b4 Qc4 $15) 16... Qd3 {[%emt 0:08:30][%cal Oe6e5]} 17. Rd1 {[%emt 0:01:30]} Qc2 {[%emt 0:00:30][%csl LRb2,LRg2]} 18. O-O {[%emt 0:00:30][%cal Bh1f1,Bf1f2,Bf2d2][%mdl 32] White wants to play Bxf6.} Qxb2 {[%emt 0:06:30]} 19. Rf2 {[%emt 0:14:05]} (19. Bc5 Qxc3 20. Qe7+ (20. Bxa7 Qa5 $15) 20... Kg6 $15) 19... Qb5 {[%emt 0:24:30]} 20. Bxa7 {[%emt 0:01:03]} ({Reject} 20. Bc5 Rhe8 $15) 20... Ra8 {[%emt 0:02:32]} 21. Bd4 $36 {[%emt 0:00:45][%mdl 2048] Threatens to win with Bxf6. White is pushing.} Rhd8 $1 {[%emt 0:02:55]} 22. Rfd2 {[%emt 0:02:15]} Qc4 {[%emt 0:03:53]} (22... Qb8 $11 23. Qc5 d6) 23. Bxf6 $16 {[%emt 0:02:51]} gxf6 {[%emt 0:00:18] [#]} 24. Qc7 $1 {[%emt 0:00:04] Repels Ra7} Qc5+ {[%emt 0:05:19]} 25. Kh1 {[%emt 0:00:30]} Qa5 $2 {[%emt 0:00:30][%mdl 8192]} (25... Kg6 $16) 26. Rxd7+ {[%emt 0:00:30] White mates.} Rxd7 {[%emt 0:00:30]} 27. Rxd7+ {[%emt 0:00:30]} Kg8 {[%emt 0:00:30]} 28. Rg7+ {[%emt 0:00:00] Weighted Error Value: White=0.07 (flawless) /Black=0.47} 1-0

[Event "TUR-ch U13-18 Open 2023"]
[Site "Antalya"]
[Date "2023.01.23"]
[Round "3"]
[White "Kavri, Yusuf Eren"]
[Black "Ogur, Nidal Hevi"]
[Result "1-0"]
[ECO "E43"]
[WhiteElo "2050"]
[BlackElo "1511"]
[Annotator "TA"]
[PlyCount "101"]
[EventDate "2023.01.17"]
[EventType "swiss"]
[EventCountry "TUR"]
[SourceTitle "playchess.com"]
[Source "ChessBase"]
[SourceQuality "1"]
[TimeControl "5400+30"]

{[%evp 23,101,11,18,0,0,0,0,-10,-6,-25,-15,-37,-34,-40,-38,-51,-3,-50,35,0,0,0,35,28,33,30,36,33,49,37,41,-21,52,12,4,0,0,0,6,0,0,0,138,118,116,119,129,86,239,216,232,216,383,378,352,350,371,361,687,693,1141,1102,1507,1456,1110,0,1110,1022,1275,1047,1945,1925,5501,4442,29963,29958,29993,29994,29997,29998]} 1. d4 {[%emt 0:02:00] Kotov,A/Primel} Nf6 {[%emt 0:01:00]} 2. c4 {[%emt 0:00:30]} e6 {[%emt 0:00:30]} 3. Nc3 {[%emt 0:00:30]} Bb4 {[%emt 0:00:30]} 4. Nf3 {[%emt 0:00:30]} b6 {[%emt 0:00:30]} 5. e3 {[%emt 0:00:00]} Bb7 {[%emt 0:00:00]} 6. Bd3 {[%emt 0:00:00]} Ne4 {[%emt 0:00:00]} 7. Qc2 {[%emt 0:01:30]} Bxc3+ {[%emt 0:01:30]} 8. bxc3 {[%emt 0:00:30]} f5 {[%emt 0:00:30]} 9. O-O {[%emt 0:01:30]} O-O {[%emt 0:00:30]} 10. Nd2 {[%emt 0:01:30]} Qh4 {[%emt 0:06:30]} 11. f3 {[%emt 0:14:30]} Nxd2 {[%emt 0:02:30]} 12. Bxd2 {[%emt 0:00:30]} d6 {[%emt 0:01:30]} 13. g3 {[%emt 0:09:30] E43: Nimzo-Indian: Rubinstein: 4...b6.} Qh5 {[%emt 0:02:30]} 14. e4 {[%emt 0:02:30]} Nd7 {[%emt 0:06:30]} 15. Rae1 {[%emt 0:04:30] The position is equal.} e5 {[%emt 0:11:30]} 16. Kg2 {[%emt 0:17:30][%cal Re4f5]} f4 {[%emt 0:03:30] [#]} 17. Re2 $146 {[%emt 0:09:30]} ({Predecessor:} 17. g4 Qg6 18. Rh1 Qf6 19. Qb2 h5 20. gxh5 Qh4 21. Reg1 Nf6 22. Be1 Qxh5 23. h4 {1-0 Goglidze,V-Levenfish,G URS-ch08 Final 1933}) 17... g5 {[%emt 0:04:30]} 18. g4 {[%emt 0:07:30]} Qf7 {[%emt 0:03:30]} 19. Kf2 {[%emt 0:05:57][%cal Oh2h4]} Kg7 {[%emt 0:00:30]} (19... h5 $15 20. h3 Kg7) 20. Ke1 {[%emt 0:00:15]} (20. h4 $11) 20... a5 {[%emt 0:13:30]} (20... h5 $15 21. Rg2 h4) 21. Qa4 {[%emt 0:06:03][%cal Oh2h4]} (21. h4 $5 {[%cal Rh4g5]}) 21... Qe7 {[%emt 0:01:30]} 22. h4 {[%emt 0:03:37]} h6 {[%emt 0:01:30]} 23. Rh1 {[%emt 0:01:13]} Rh8 {[%emt 0:00:30]} 24. Reh2 {[%emt 0:00:00]} Rag8 {[%emt 0:13:30]} 25. Kd1 {[%emt 0:02:03]} (25. Ke2 {feels hotter.} Nf6 26. Be1 Bc8 27. Kd2) 25... Nf6 {[%emt 0:09:49]} 26. Kc1 {[%emt 0:01:47]} Bc8 {[%emt 0:01:54]} 27. Qc6 {[%emt 0:01:57]} (27. Qd1 $14) 27... Qd7 {[%emt 0:00:05]} (27... Bd7 $11 28. Qxc7 Rc8) 28. Qxd7+ {[%emt 0:02:21]} Nxd7 {[%emt 0:00:01]} 29. Kc2 {[%emt 0:01:35]} h5 {[%emt 0:08:24]} 30. gxh5 {[%emt 0:01:33]} Rxh5 {[%emt 0:00:04]} 31. hxg5 {[%emt 0:00:58]} Rxh2 {[%emt 0:02:11]} 32. Rxh2 {[%emt 0:00:30]} Rh8 {[%emt 0:00:30] Inhibits Rh6.} (32... Nf8 $1 $11) 33. Rxh8 $16 {[%emt 0:00:30]} Kxh8 {[%emt 0:00:30][%mdl 4096] Endgame [#] KBB-KBN} 34. c5 $1 {[%emt 0:00:30][%mdl 512]} bxc5 {[%emt 0:00:30]} 35. Bb5 {[%emt 0:00:30]} Nb6 $2 {[%emt 0:00:30]} (35... Kg7 $16 {was worth a try.}) 36. dxc5 {[%emt 0:00:30]} dxc5 {[%emt 0:00:30]} 37. c4 {[%emt 0:00:30] Bc3 would be deadly.} Kg7 $2 {[%emt 0:00:30]} (37... Bb7 {keeps fighting.} 38. Bc3 (38. Bxa5 Kg7 $18) 38... Kg8) 38. Bc3 $18 {[%emt 0:00:30]} ({Not} 38. Bxa5 Kg6 39. Bc3 Nd7 40. Bxd7 Bxd7 41. Bxe5 Kxg5 42. Bxc7 Be8 $18) 38... c6 {[%emt 0:00:30]} 39. Bxe5+ {[%emt 0:00:30]} Kg6 {[%emt 0:00:30]} 40. Bxc6 {[%emt 0:00:30]} Nxc4 $2 {[%emt 0:00:30]} (40... Kxg5 41. Kc3 Bd7) 41. Bxf4 {[%emt 0:00:30]} Ba6 {[%emt 0:00:30]} 42. Kc3 {[%emt 0:00:30]} Nb6 {[%emt 0:00:30]} 43. Be3 {[%emt 0:00:30]} Nc4 {[%emt 0:00:30]} 44. Bf4 {[%emt 0:00:30]} Nb6 $1 {[%emt 0:00:30]} 45. Bc1 {[%emt 0:00:30]} Bc4 {[%emt 0:00:30]} 46. a3 {[%emt 0:01:39] [#] And now f4 would win.} Be2 {[%emt 0:05:04]} 47. f4 {[%emt 0:00:30][%cal Bf3f4,Bf4f5,Bf5f6][%mdl 32]} Nc8 {[%emt 0:00:30]} 48. f5+ {[%emt 0:00:30]} Kg7 {[%emt 0:00:30]} 49. f6+ {[%emt 0:00:30] White mates.} Kf8 {[%emt 0:00:30]} 50. g6 {[%emt 0:00:30]} Bh5 {[%emt 0:00:30]} 51. Bh6+ {[%emt 0:00:00] Weighted Error Value: White=0.34/Black=0.41} 1-0

[Event "TUR-ch U13-18 Open 2023"]
[Site "Antalya"]
[Date "2023.01.23"]
[Round "3"]
[White "Deveci, Huseyin Said"]
[Black "Torun, Kagan"]
[Result "1-0"]
[ECO "A25"]
[WhiteElo "1987"]
[BlackElo "1442"]
[Annotator "TA"]
[PlyCount "67"]
[EventDate "2023.01.17"]
[EventType "swiss"]
[EventCountry "TUR"]
[SourceTitle "playchess.com"]
[Source "ChessBase"]
[SourceQuality "1"]
[TimeControl "5400+30"]

{[%evp 9,67,16,11,-51,58,-80,-6,0,0,-8,0,0,0,0,40,55,141,150,132,101,123,56,134,135,134,145,142,143,222,206,237,192,347,319,321,317,333,285,305,185,229,187,199,168,292,289,717,728,1032,1008,1601,444,428,420,422,385,508,427,1314,1293]} 1. c4 {[%emt 0:01:00]} e5 {[%emt 0:01:00]} 2. g3 {[%emt 0:00:30]} Nc6 {[%emt 0:00:00]} 3. Bg2 {[%emt 0:00:30]} f5 {[%emt 0:00:00]} 4. Nc3 {[%emt 0:00:00]} Nf6 {[%emt 0:00:30]} 5. d3 {[%emt 0:00:00]} Bb4 {[%emt 0:00:30]} 6. e3 {[%emt 0:00:30] A25: English Opening vs King's Indian with ...Nc6 but without early d3.} (6. Bd2 $11) 6... e4 {[%emt 0:07:30]} ({Black should try} 6... Bxc3+ $1 $15 7. bxc3 e4) 7. d4 {[%emt 0:06:30]} (7. Nge2 $14 {stays ahead.}) 7... d5 {[%emt 0:00:30]} (7... Bxc3+ $17 8. bxc3 d6) 8. cxd5 $11 {[%emt 0:02:30] The position is equal.} Qxd5 {[%emt 0:00:30]} 9. Nge2 {[%emt 0:00:30]} O-O {[%emt 0:00:30]} 10. O-O {[%emt 0:00:00]} Qf7 {[%emt 0:02:30]} 11. f3 {[%emt 0:05:00] [#]} Bxc3 $146 {[%emt 0:03:30]} ({Predecessor:} 11... exf3 12. Bxf3 Bd7 13. a3 Bd6 14. Nb5 Rae8 15. Nec3 Na5 16. Nxd6 cxd6 17. d5 Qg6 {0-1 Kaustuv,K (2349)-Mchedlishvili,M (2578) New Delhi Parsvnath op-A 18th 2020 (2)}) 12. Nxc3 {[%emt 0:01:30][%cal Rf3e4]} Qe7 {[%emt 0:16:30]} (12... exf3 $14 13. Qxf3 a5) 13. fxe4 $1 $16 {[%emt 0:04:30]} fxe4 {[%emt 0:00:30]} 14. Qb3+ {[%emt 0:05:30]} Kh8 {[%emt 0:00:30] [#]} 15. Nxe4 {[%emt 0:05:30] White is more active.} Be6 {[%emt 0:01:30]} (15... Bh3 $1 $14 16. Bxh3 Nxe4) 16. Qa3 {[%emt 0:02:30]} ({Not} 16. Qxb7 Nxe4 17. Rxf8+ (17. Bxe4 Rxf1+ 18. Kxf1 Rf8+ 19. Kg2 Nd8 $19 {[%mdl 64] Decoy}) 17... Rxf8 18. Qxc6 (18. Bxe4 $2 Bh3 $19) 18... Qf6 $17) 16... Qxa3 {[%emt 0:06:30]} 17. bxa3 {[%emt 0:00:30] Nxf6 is the strong threat.} Bc4 {[%emt 0:02:30]} 18. Rd1 {[%emt 0:03:30]} Nd5 {[%emt 0:07:30]} (18... Nxe4 $16 19. Bxe4 Rae8) 19. Bd2 $18 {[%emt 0:00:00]} Rae8 {[%emt 0:01:30]} 20. Re1 {[%emt 0:01:00] Wards off Be2} Re7 $2 {[%emt 0:03:30]} (20... Nd8 21. Nc5 c6) 21. Rac1 {[%emt 0:12:30]} Nb6 {[%emt 0:18:30]} 22. Nc5 {[%emt 0:01:30][%cal Be4c5,Bc5e6,Be6f4][%mdl 32]} Ref7 {[%emt 0:00:30]} 23. Bc3 {[%emt 0:23:30]} Rf2 {[%emt 0:03:30]} 24. e4 {[%emt 0:02:30]} Rxa2 {[%emt 0:01:30]} 25. d5 {[%emt 0:01:30]} Rff2 {[%emt 0:01:30] [#]} 26. Bh1 {[%emt 0:00:30] This pair of bishops is nice.} Ne7 {[%emt 0:06:36]} (26... Nd8 {was called for.}) 27. Ne6 {[%emt 0:00:30]} ({Don't do} 27. Nxb7 Rxh2 28. Be5 c6 $18) 27... Nexd5 $2 {[%emt 0:00:46]} (27... c5 28. Nxc5 Rxh2 29. Nxb7 Kg8) 28. exd5 {[%emt 0:00:30]} Bxd5 {[%emt 0:00:58]} 29. Nf4 {[%emt 0:02:00]} Bf7 {[%emt 0:02:38]} 30. Bd4 {[%emt 0:00:20]} (30. Re7 $142 Rxf4 31. gxf4) 30... Rfc2 {[%emt 0:00:41]} 31. Rxc2 {[%emt 0:00:36]} Rxc2 {[%emt 0:00:02]} 32. Bxb7 {[%emt 0:00:46]} c5 {[%emt 0:00:22]} 33. Be5 {[%emt 0:01:15] Rd1 would be deadly.} c4 {[%emt 0:01:57]} (33... Nc4 $142 34. Bb8 a5) 34. Rd1 {[%emt 0:01:21] An entertaining game by Deveci.   Weighted Error Value: White=0.53/Black=0.47} 1-0